Cogmind - Beta 16.1 @@@ ROGUE MODE // 2026.04.20 @ 12:39:28 Player: Maelyn Result: Destroyed by G-47 Trooper with Particle Gun Performance ------------- Evolutions (2) 1000 Regions Visited (5) 1000 Robots Destroyed (14) 70 Value Destroyed (280) 280 Prototype IDs (1) 20 Alien Tech Used (0) 0 Bonus (102) 102 TOTAL SCORE: 2472 Bonus ------- Follower Combat Kills 102 Cogmind --------- Core Integrity 0/550 Matter 279/300 Energy 85/125 System Corruption 0% Temperature Warm (177) Movement Core (750) Ox14 Location -8/Materials Parts ------- > --- POWER (1) -------- Light Ion Engine > --- PROPULSION (4) --- (None) > --- UTILITY (4) ------ High-capacity Storage Unit 0b10 Alert Chip > --- WEAPON (2) ------- Medium Laser > --- INVENTORY (20) --- Light Assault Rifle Grenade Launcher Rocket Launcher Improved Datajack Peak State ------------ > --- POWER ------------ Light Nuclear Core > --- PROPULSION ------- Aluminum Leg Carbon-fiber Leg > --- UTILITY ---------- High-capacity Storage Unit Structural Scanner 0b10 Alert Chip > --- WEAPON ----------- Light Assault Rifle Makeshift Sword > --- INVENTORY -------- Light Ion Engine Medium Laser Medium Laser Light Assault Rifle Grenade Launcher Rocket Launcher Improved Datajack [Rating: 21] Favorites ----------- Power Light Nuclear Core Engine Light Ion Engine Power Core Light Nuclear Core Propulsion Light Treads Treads Light Treads Leg Aluminum Leg Utility Small Storage Unit Device Improved Sensor Array Storage Small Storage Unit Processor 0b10 Alert Chip Protection Hardened Light Armor Plating Weapon Light Assault Rifle Energy Gun Medium Laser Ballistic Gun Light Assault Rifle Slashing Weapon Makeshift Sword Build | -11 -10 -10 -10 -9 -8 ------- Run | Yrd Mat Min Exi Min Mat Slots Evolved 4 | . . . . . 4 Power . | . . . . . . Propulsion 2 | . . . . . 2 Utility 2 | . . . . . 2 Weapon . | . . . . . . Parts Attached 19 | 4 3 1 2 . 9 Power 4 | 1 . 1 . . 2 Engine 2 | 1 . . . . 1 Core 2 | . . 1 . . 1 Reactor . | . . . . . . Propulsion 4 | 2 . . . . 2 Treads 2 | 2 . . . . . Leg 2 | . . . . . 2 Wheel . | . . . . . . Hover . | . . . . . . Flight . | . . . . . . Utility 6 | 1 1 . 2 . 2 Device 2 | . . . . . 2 Storage 2 | 1 . . 1 . . Processor 1 | . . . 1 . . Hackware . | . . . . . . Protection 1 | . 1 . . . . Artifact . | . . . . . . Weapon 5 | . 2 . . . 3 Energy Gun 2 | . . . . . 2 Energy Cannon . | . . . . . . Ballistic Gun 2 | . 2 . . . . Ballistic Cannon . | . . . . . . Launcher . | . . . . . . Special Weapon . | . . . . . . Impact Weapon . | . . . . . . Slashing Weapon 1 | . . . . . 1 Piercing Weapon . | . . . . . . Special Melee Weapon . | . . . . . . Unidentified Prototypes 1 | . . . 1 . . Parts Lost 12 | . . . . . 12 Power 2 | . . . . . 2 Propulsion 4 | . . . . . 4 Utility 3 | . . . . . 3 Weapon 3 | . . . . . 3 Highest Loss Streak 7 | . . . . . 7 To Critical Strikes . | . . . . . . Average Backups 7 | 3 5 7 8 8 7 Power 1 | . 1 1 1 1 . Propulsion 1 | 1 2 2 1 1 . Utility . | . . . . 1 . Weapon 3 | 1 2 3 4 5 4 Tool/Special . | . . . . . . Unused Backups 4 | . . . 1 . 3 Power . | . . . . . . Propulsion 1 | . . . 1 . . Utility . | . . . . . . Weapon 2 | . . . . . 2 Tool/Special 1 | . . . . . 1 Average Slot Usage (%) 91 | . 90 100 100 100 65 Engine 4 | . 14 6 . . 1 Core 8 | . . 7 14 14 6 Treads 24 | . 28 28 28 28 9 Leg 1 | . . . . . 6 Storage 13 | . 14 14 14 14 9 Processor 4 | . . . 7 14 9 Protection 7 | . 5 14 6 . . Ballistic Gun 25 | . 27 28 28 28 13 Peak Build Rating 21 | 4 8 10 15 15 21 Average Rating 11 | 3 6 9 12 15 17 On Entrance 8 | . 4 8 10 15 15 Avg Prop Armor Cover (%) . | . . . . . . Naked Turns . | . . . . . . Heaviest Build 49 | 8 15 17 47 47 49 Greatest Support 40 | 40 40 40 40 40 40 Greatest Overweight (x) 4 | . . . 1 1 4 Average Overweight (x) . | . . . . 1 1 Largest Inventory Capacity 20 | 8 8 8 20 20 20 Average Capacity 11 | 7 8 8 9 20 20 Most Carried 9 | 6 6 8 8 8 9 Average Carried 7 | 3 5 7 8 8 7 Final Capacity 20 | 8 8 8 20 20 20 Final Carried 8 | 6 6 8 8 8 4 Class Distribution -------------------- 100% | Mutant Dominant Class ---------------- Mutant | -10/Materials Mutant | -10/Mines Mutant | -10/Exiles Mutant | -9/Mines Mutant | -8/Materials Resources | -11 -10 -10 -10 -9 -8 ----------- Run | Yrd Mat Min Exi Min Mat Matter Collected 433 | 119 . 165 . 62 87 Remotely . | . . . . . . Salvage Created 456 | . 110 . . 41 305 Parts 33 | . 10 . . 6 17 Haulers Intercepted 1 | . 1 . . . . Recyclers Shooed . | . . . . . . Parts Field Recycled . | . . . . . . Retrieved Matter . | . . . . . . Parts Self-Destructed . | . . . . . . Prevented . | . . . . . . Parts Restored . | . . . . . . Kills | -11 -10 -10 -10 -9 -8 ------- Run | Yrd Mat Min Exi Min Mat Combat Hostiles Destroyed 9 | . 2 . . 3 4 Melee 1 | . . . . . 1 Guns 7 | . 2 . . 3 2 Classes Destroyed 7 | . 3 . . . 4 Builder 2 | . . . . . 2 Hauler 1 | . 1 . . . . Recycler 1 | . . . . . 1 Watcher 1 | . 1 . . . . Swarmer 5 | . 2 . . 3 . Grunt 3 | . . . . . 3 Hunter 1 | . . . . . 1 Best Kill Streak 3 | . 2 . . 3 2 Combat Bots Only 3 | . 2 . . 3 2 Max Kills in Single Turn 2 | . 2 . . 1 1 Gunslinging 1 | . 1 . . . . Exploded . | . . . . . . Melee 1 | . . . . . 1 Uniques/NPCs Destroyed . | . . . . . . Combat | -11 -10 -10 -10 -9 -8 -------- Run | Yrd Mat Min Exi Min Mat Hostile Shots Fired 167 | . 21 . . 22 124 Missed 31 | . 8 . . 5 18 Hits 136 | . 13 . . 17 106 Projectile 136 | . 13 . . 17 106 Critical Strikes 4 | . . . . . 4 Damage Taken 1915 | . 108 . . 129 1678 Core 567 | . 16 . . . 551 Absorbed by Shields . | . . . . . . Core Remaining (%) 96 | 100 . . . 93 . Volleys Fired 47 | . 7 . . 16 24 Largest 2 | . 2 . . 2 2 Hottest 100 | . 40 . . 40 100 Shots Fired 90 | . 14 . . 32 44 Gun 90 | . 14 . . 32 44 Cannon . | . . . . . . Launcher . | . . . . . . Special . | . . . . . . Kinetic 84 | . 14 . . 32 38 Thermal 6 | . . . . . 6 Explosive . | . . . . . . Electromagnetic . | . . . . . . Robot Hit Streak 15 | . 5 . . 3 15 Robot Miss Streak 6 | . 2 . . 6 1 Penetration Max . | . . . . . . Secondary Targets 3 | . 1 . . 1 1 Max Gunslinging Chain 1 | . 1 . . 1 1 Shots Hit Robots 64 | . 9 . . 11 44 Core Hits 26 | . 6 . . 7 13 Critical Kills . | . . . . . . Critical Parts Destroyed . | . . . . . . Critical Strikes . | . . . . . . Melee Attacks 7 | . . . . . 7 Impact . | . . . . . . Slashing 7 | . . . . . 7 Piercing . | . . . . . . Sneak Attacks 3 | . . . . . 3 Combat Hostiles . | . . . . . . Follow-up Attacks . | . . . . . . Damage Inflicted 834 | . 82 . . 94 658 Guns 502 | . 82 . . 94 326 Cannons . | . . . . . . Explosions . | . . . . . . Melee 317 | . . . . . 317 Ramming 15 | . . . . . 15 Kinetic 427 | . 82 . . 94 251 Thermal 75 | . . . . . 75 Explosive . | . . . . . . Electromagnetic . | . . . . . . Impact . | . . . . . . Slashing 317 | . . . . . 317 Piercing . | . . . . . . Highest Corruption . | . . . . . . Average Corruption . | . . . . . . Corruption Purged . | . . . . . . Corruption Blocked . | . . . . . . Overload Shots . | . . . . . . Overflow Damage 36 | . . . . . 36 Projectiles . | . . . . . . Explosions . | . . . . . . Melee 36 | . . . . . 36 Knockbacks . | . . . . . . Impact . | . . . . . . Kinetic . | . . . . . . Secondary . | . . . . . . Self-Inflicted Damage . | . . . . . . Shots . | . . . . . . Rammed . | . . . . . . Targets Rammed 5 | . . . . . 5 Kicked 5 | . . . . . 5 Crushed . | . . . . . . Highest Temperature 168 | . 10 . . 8 168 Average Temperature 33 | . 7 . . 4 52 Received Heat Transfer 801 | . . . . . 801 Siege Activations . | . . . . . . Martial Activations . | . . . . . . Shielding Activations . | . . . . . . Robots Disrupted . | . . . . . . Combat Hostiles . | . . . . . . Robots Corrupted . | . . . . . . Combat Hostiles . | . . . . . . Parts Fried . | . . . . . . Impact Corruptions . | . . . . . . Robots Melted 1 | . . . . . 1 Combat Hostiles 1 | . . . . . 1 Parts Melted 1 | . . . . . 1 Heat Transferred 222 | . . . . . 222 Parts Sabotaged . | . . . . . . Parts Stolen . | . . . . . . Parts Stripped . | . . . . . . Power Chain Reactions . | . . . . . . Alert | -11 -10 -10 -10 -9 -8 ------- Run | Yrd Mat Min Exi Min Mat Maximum Alert Level . | . . . . . . Low Security (%) 100 | 100 100 100 . 100 100 Level 1 . | . . . . . . Level 2 . | . . . . . . Level 3 . | . . . . . . Level 4 . | . . . . . . Level 5 . | . . . . . . High Security . | . . . . . . Max Security . | . . . . . . Peak Influence 50 | . 50 38 . 40 24 Initial 5 | . . 5 . . . Average 6 | . 12 3 . 13 3 Influence Increases 346 | . 79 71 . 100 96 Destroy 0b10 Robot/C 224 | . 40 40 . 80 64 Destroy 0b10 Robot/NC 22 | . 10 . . . 12 Destroy Leader 56 | . 14 10 . 16 16 Allied During Kill 10 | . . 6 . 4 . Successful Hack 4 | . . . . . 4 Lose Combat Pursuer 30 | . 15 15 . . . Influence Decreases 330 | . 64 86 . 100 80 Entered New Map 10 | . . 10 . . . Time Decay 258 | . 64 58 . 80 56 Lost Part 24 | . . . . . 24 Lost Ally 38 | . . 18 . 20 . Squads Dispatched 1 | . . . . . 1 Investigation 1 | . . . . . 1 Extermination . | . . . . . . Reinforcement . | . . . . . . Assault . | . . . . . . Garrison . | . . . . . . Intercept . | . . . . . . Searches Triggered . | . . . . . . Construction Impeded . | . . . . . . Haulers Reinforced . | . . . . . . Active Scanning Responses . | . . . . . . Cargo Convoy Interrupts . | . . . . . . Stealth | -11 -10 -10 -10 -9 -8 --------- Run | Yrd Mat Min Exi Min Mat Distress Signals 1 | . 1 . . . . Communications Jammed . | . . . . . . Distress Signals . | . . . . . . Times Spotted 24 | . 7 2 . 5 10 Peak Tracking Total 6 | . 4 2 . 4 6 Tactical Retreats 2 | . 1 1 . . . Traps | -11 -10 -10 -10 -9 -8 ------- Run | Yrd Mat Min Exi Min Mat Traps Triggered . | . . . . . . Indirectly . | . . . . . . Trap Hack Attempts . | . . . . . . Triggered . | . . . . . . Disarmed . | . . . . . . Reprogrammed . | . . . . . . Reused . | . . . . . . Traps Extracted . | . . . . . . Installed . | . . . . . . Triggered . | . . . . . . Machines | -11 -10 -10 -10 -9 -8 ---------- Run | Yrd Mat Min Exi Min Mat Machines Disabled . | . . . . . . Max in Single Turn . | . . . . . . Machines Repaired . | . . . . . . Machines Dismantled . | . . . . . . Machines Sabotaged . | . . . . . . Overloaded Fab Kills . | . . . . . . Hacking | -11 -10 -10 -10 -9 -8 --------- Run | Yrd Mat Min Exi Min Mat Machines Accessed 2 | . 1 . . . 1 Terminals 2 | . 1 . . . 1 Fabricators . | . . . . . . Repair Stations . | . . . . . . Recycling Units . | . . . . . . Scanalyzers . | . . . . . . Garrison Access . | . . . . . . Total Hacks 5 | . 2 . . . 3 Successful 3 | . 2 . . . 1 Failed 2 | . . . . . 2 Catastrophic 1 | . . . . . 1 Database Lockouts . | . . . . . . Manual 5 | . 1 . 1 . 3 Terminals 5 | . 2 . . . 3 Fabricators . | . . . . . . Repair Stations . | . . . . . . Recycling Units . | . . . . . . Scanalyzers . | . . . . . . Garrison Access . | . . . . . . Terminal Hacks 2 | . 2 . . . . Terminal Index 1 | . 1 . . . . Hauler Manifests 1 | . 1 . . . . Fabricator Hacks . | . . . . . . Repair Station Hacks . | . . . . . . Recycling Unit Hacks . | . . . . . . Scanalyzer . | . . . . . . Garrison Access Hacks . | . . . . . . Unauthorized Hacks 1 | . . . . . 1 Terminals 1 | . . . . . 1 Botnet 1 | . . . . . 1 Fabricators . | . . . . . . Repair Stations . | . . . . . . Recycling Units . | . . . . . . Scanalyzers . | . . . . . . Garrison Access . | . . . . . . Data Cores Recovered . | . . . . . . Used . | . . . . . . Hacking Detections 2 | . 1 . . . 1 Full Trace Events 1 | . . . . . 1 Feedback Events . | . . . . . . Feedback Blocked . | . . . . . . Robot Schematics Acquired . | . . . . . . Robots Built . | . . . . . . Authchips . | . . . . . . Time . | . . . . . . Total Robot Build Rating . | . . . . . . Part Schematics Acquired . | . . . . . . Parts Built . | . . . . . . Authchips . | . . . . . . Time . | . . . . . . Total Part Build Rating . | . . . . . . Part Studies Acquired . | . . . . . . Parts Repaired . | . . . . . . Time . | . . . . . . Parts Recycled . | . . . . . . Recycled Matter . | . . . . . . Retrieved Matter . | . . . . . . Retrieved Components . | . . . . . . Parts Scanalyzed . | . . . . . . Part Schematics Acquired . | . . . . . . Parts Damaged . | . . . . . . Bothacking | -11 -10 -10 -10 -9 -8 ------------ Run | Yrd Mat Min Exi Min Mat Used RIF Installer . | . . . . . . Robots Hacked . | . . . . . . Non-combat . | . . . . . . Combat . | . . . . . . Robot Hacks Applied . | . . . . . . Relay Couplers Released . | . . . . . . Fabnet Peak Effective % . | . . . . . . Robots Rewired . | . . . . . . Allies Hacked . | . . . . . . Hacks Repelled . | . . . . . . Allies | -11 -10 -10 -10 -9 -8 -------- Run | Yrd Mat Min Exi Min Mat Total Allies 3 | . . 3 . . . Largest Group 3 | . . 3 2 1 . Highest-Rated Group 40 | . . 40 24 16 . Highest-Rated Ally 16 | . . 16 16 16 . Total Orders . | . . . . . . Ally Attacks 40 | . . 28 . 12 . Total Damage 429 | . . 292 . 137 . Kills 4 | . . 2 . 2 . Allies Corrupted . | . . . . . . Allies Melted . | . . . . . . Intel | -11 -10 -10 -10 -9 -8 ------- Run | Yrd Mat Min Exi Min Mat Active Infowar (turns) 194 | . . . . . 194 Sensors 167 | . . . . . 167 Structural 27 | . . . . . 27 Robot Analysis Total . | . . . . . . Derelict Logs Recovered 1 | . . 1 . . . Drone Launches . | . . . . . . Drone Recoveries . | . . . . . . Exploration | -11 -10 -10 -10 -9 -8 ------------- Run | Yrd Mat Min Exi Min Mat Turns Passed 2041 | 74 277 723 390 200 377 Spaces Moved 1048 | 43 159 426 228 67 125 Core 5 | 5 . . . . . Treads 980 | 38 159 426 228 67 62 Legs 63 | . . . . . 63 Wheels . | . . . . . . Hover . | . . . . . . Flight . | . . . . . . Fastest Speed 50 | 50 160 160 160 240 190 Average Speed 173 | 147 160 160 169 240 221 Slowest Speed 400 | 160 160 160 240 240 400 Overloaded Moves . | . . . . . . Propulsion Burnouts . | . . . . . . Robots Hopped . | . . . . . . Potential Cave-ins . | . . . . . . Cave-ins Triggered . | . . . . . . Exploration Rate (%) 33 | 3 33 80 61 10 13 Regions Visited 5 Branch Regions 3 Pre-discovered Areas . | . . . . . . Known Exits Taken . | . . . . . . Unknown Exits Taken 5 | 1 1 1 1 1 . Scrap Searched 1 | . . 1 . . . Spaces Dug . | . . . . . . Terrain Destroyed . | . . . . . . Melee . | . . . . . . Projectile . | . . . . . . AOE . | . . . . . . Terrain Rammed . | . . . . . . Walls Destroyed . | . . . . . . Machines Disabled . | . . . . . . Actions | -11 -10 -10 -10 -9 -8 --------- Run | Yrd Mat Min Exi Min Mat Total 1178 | 52 170 467 234 82 173 Wait 40 | . . 40 . . . Move 1043 | 42 158 425 227 66 125 Hop . | . . . . . . Pick Up 12 | 6 2 1 2 . 1 Fast Attach 8 | 4 1 . . . 3 Attach 8 | . 2 . . . 6 Detach . | . . . . . . Swap 5 | . . 1 2 . 2 Drop 3 | . . . 3 . . Fire 47 | . 7 . . 16 24 Melee 7 | . . . . . 7 Ram . | . . . . . . Kick 5 | . . . . . 5 Crush . | . . . . . . Escape Stasis . | . . . . . . Rewire . | . . . . . . Trap . | . . . . . . Miscellaneous . | . . . . . . Route ------- -11/Scrapyard -10/Materials (discovered 2 exits: [*Min x2]) -10/Mines (discovered 3 exits: [*Mat] / *Exi / [*Sub]) -10/Exiles -9/Mines -8/Materials History --------- Turn | Location | Event 54 | -11/Scrapyard | Discovered new exit (range 14) 75 | -11/Scrapyard | Entered Materials 210 | -10/Materials | Discovered new exit (range 16) 305 | -10/Materials | Discovered new exit (range 8) 311 | -10/Materials | Build established: Mutant 352 | -10/Materials | Entered Mines 364 | -10/Mines | Met a Derelict bent on vengeance 378 | -10/Mines | Learned Materials interactive machine intel 486 | -10/Mines | Assisted by bots powering up and referring to "LRC-V3" 537 | -10/Mines | Discovered new exit (range 12) 899 | -10/Mines | Discovered new exit (range 6) 1011 | -10/Mines | Found a hidden stash of uninstalled traps 1066 | -10/Mines | Deemed a non-threat by the Exiles lab entrance 1066 | -10/Mines | Discovered new exit (range 5) 1075 | -10/Mines | Entered Exiles 1075 | -10/Exiles | Found Exiles lab destroyed 1075 | -10/Exiles | Accompanied by 2 allies 1247 | -10/Exiles | Opened EX-Vault 1250 | -10/Exiles | Found Prototype Processor 1251 | -10/Exiles | Identified 0b10 Alert Chip 1445 | -10/Exiles | Discovered new exit (range 10) 1465 | -10/Exiles | Entered Mines 1465 | -9/Mines | Accompanied by 2 allies 1641 | -9/Mines | Discovered new exit (range 8) 1665 | -9/Mines | Entered Materials 1665 | -8/Materials | Evolved 4 slots: Propulsion x2, Utility x2 1666 | -8/Materials | Loaded intel: 19 interactive machine locations 1899 | -8/Materials | Lost 5 parts (1p2n2u) 2029 | -8/Materials | Core integrity fell below 50% 2038 | -8/Materials | Core integrity fell below 20% 2042 | -8/Materials | Destroyed by G-47 Trooper with Particle Gun Last Messages --------------- 02008_ Critical hit (Burn: +37). 02017_ Kicked G-47 Trooper. 02018_ Lgt. Nuclear Core destroyed. 02019_ Kicked G-47 Trooper. 02020_ Structural Scanner destroyed. 02020_ Aluminum Leg destroyed. 02021_ K-01 Serf collects debris. 02021_ Kicked G-47 Trooper. 02024_ Lgt. Assault Rifle destroyed. 02024_ Kicked G-47 Trooper. 02026_ Kicked G-47 Trooper out of the way. 02027_ K-01 Serf collects debris. 02028_ Carbon-fiber Leg destroyed. 02028_ Critical hit (Burn: +37). 02030_ Acquired 4 matter. 02032_ Med. Laser destroyed. 02033_ K-01 Serf collects debris. 02040_ K-01 Serf cleans the Matter Pump. 02042_ G-47 Trooper critical meltdown. 02042_ Aluminum Leg melted. Map ----- +----------------------------------------------------+ | ????????????????????????????????????#! * #??? | | ??????????????????????????????????###########+#### | | ??????????????????????????????????# | | ??????????????????????????????????# | | ??????????????????????????????????# | | ??????????????????????????????????# #######+#### | | ??????????????????????????????????# ## # | | ??????????????????????????????????# ## # | | ??????????????????????????????????# ## # | | ?????????????? ??####??????????# ## """ # | | ??????????????## ##########?????# ##" """"" # | | ??????????????## ###T############ ##T """"" # | | ??????????????## [ ####### #" """"" # | | ??????????????## ^ # """ # | | ??????????????## """ = T ########### | | ?????????????### """ !%! ##????????? | | ?????????????### k""" ###%### ##????????? | | ?????????????##" "# ## ###????????? | | ?????????????##T # ## ###????????? | | ?????????????##" k"# ## #??????????? | | ?????????????### ## ##### #??????????? | | ?????????????### % ###?#### #??????????? | | ??????????????## ##?????# #??????????? | | ??????????????## "T" ##?????# #??????????? | | ??????????????######### ##?????# #??????????? | | ??????????????######### %@%##?????? #??????????? | | ?????????????????????## %% ##???"?? #??????????? | | ?????????????????????## g ##???T?? ??????????? | | ????????????????????? # ##???"?? ??????????? | | ????????????????????? # ##????????????????????? | | ????????????????????? # ##????????????????????? | | ????????????????????? # g ##????????????????????? | | ????????????????????? # ##????????????????????? | | ????????????????????? #g ##????????????????????? | | ?????????????????????##ag ##????????????????????? | | ????????????????????? ????????????????????? | | ?????????????????????? ?????????????????????? | | ????????????????????? ????????????????????? | | ?????????????????????########????????????????????? | | ?????????????????????########????????????????????? | | ?????????????????????????????????????????????????? | | ?????????????????????????????????????????????????? | | ????"S??????????????"""??????????????????????????? | | ????"""?????????????"T"??????????????????????????? | | ?????""?????????????"?"??????????????????????????? | | ?????????????????????????????????????????????????? | | ?????????????????????????????????????????????????? | | ?????????????????????????????????????????????????? | | ???????????????????????????????????????????????""" | | ???????????????????????????????????????????????"R? | +----------------------------------------------------+ Best States ------------- Heat Dissipation 31 Energy Generation 14 Energy Capacity 160 Matter Stores 300 Matter Capacity 300 Sight Range 16 Robot Scan Range 15 Terrain Scan Density 10 Armor Coverage 150 Evasion (%) 40 Recoil Reduction 2 Item Schematics ----------------- None Robot Schematics ------------------ None Fabricated ------------ Nothing Repaired ---------- Nothing Studied --------- None Alien Tech Used ----------------- None Achievements -------------- Luggage Code Challenges ------------ None Game ------ Seed BeamDisruptorScrapsphere Manual? 0 Play Time 00:13:07 Cumulative 66.7 hours Start 2026.04.20 @ 12:29:26 End 2026.04.20 @ 12:39:28 Sessions 1 Manual Loads 0 Difficulty Rogue Special Mode None Game No. 131 Rogue 131 Adventurer 0 Explorer 0 Win Type - Total 0 Types 0/0/0/0/0/0/0/0/0/0 Lore% 15 Gallery% 33 Achievement% 23 Wizard Run 0 Options --------- Layout 0 ASCII 0 Keyboard 1 Movement Vi Keybinds 0 Fullscreen 2 Font 18/T_Terminus Map View 76x50 Zoom Use 0% Tactical HUD 1 Map Filters SHIFT_HUE(5) Filters LOW_CONTRAST(10,2,20)|SHIFT_HUE(5) Steam 1 RUN: ccbda24a-397a-4dd8-9c1b-63e9e6501fe7